fUSD/lending_fUSD_20241227
["ID","MTS","AMOUNT","RATE_DAILY","PERIOD"]
[346806048,1735300259215,-500.0,0.00010888,2]
[346806049,1735300259225,-500.0,0.00010888,2]
[346806050,1735300259236,-500.0,0.00010888,2]
[346806051,1735300259245,-582.85,0.00010888,2]
[346806052,1735300259255,-631.53,0.00010888,2]
[346806053,1735300259265,-500.0,0.00010888,2]
[346806054,1735300259279,-909.23,0.00010888,2]
[346806055,1735300259291,-500.0,0.00010888,2]
[346806056,1735300259303,-500.0,0.00010888,2]
[346806057,1735300259313,-500.0,0.00010888,2]
[346806058,1735300259326,-691.47,0.00010888,2]
[346806059,1735300259336,-2849.04,0.00010888,2]
[346806060,1735300259346,-500.0,0.00010888,2]
[346806061,1735300259357,-500.0,0.00010888,2]
[346806062,1735300259366,-500.0,0.00010888,2]
[346806063,1735300259376,-1488.3,0.00010888,2]
[346806064,1735300259386,-797.73,0.00010888,2]
[346806065,1735300259397,-401.77980678,0.00010888,2]
[346806066,1735300259406,-370.17588802,0.00010888,2]
[346806067,1735300259416,-500.0,0.00010888,2]
[346806068,1735300259426,-500.0,0.00010888,2]
[346806069,1735300259436,-3048.21,0.00010888,2]
[346806070,1735300259446,-500.0,0.00010888,2]
[346806071,1735300259456,-500.0,0.00010888,2]
[346806072,1735300259466,-655.51,0.00010888,2]
[346806073,1735300259476,-500.0,0.00010888,2]
[346806074,1735300259486,-500.0,0.00010888,2]
[346806075,1735300259496,-500.0,0.00010888,2]
[346806076,1735300259507,-500.0,0.00010888,2]
[346806077,1735300259517,-500.0,0.00010888,2]
[346806078,1735300259527,-1075.06,0.00010888,2]
[346806079,1735300259538,-872.93,0.00010888,2]
[346806080,1735300259548,-2832.84,0.00010888,2]
[346806081,1735300259561,-500.0,0.00010888,2]
[346806082,1735300259571,-552.02588548,0.00010888,2]
[346806083,1735300259581,-500.0,0.00010888,2]
[346806084,1735300259591,-1206.21,0.00010888,2]
[346806085,1735300259602,-696.5,0.00010888,2]
[346806086,1735300259612,-1211.35,0.00010888,2]
[346806087,1735300259621,-500.0,0.00010888,2]
[346806088,1735300259631,-500.0,0.00010888,2]
[346806089,1735300259641,-500.0,0.00010888,2]
[346806090,1735300259651,-2837.98,0.00010888,2]
[346806091,1735300259661,-500.0,0.00010888,2]
[346806092,1735300259671,-500.0,0.00010888,2]
[346806093,1735300259681,-500.80865954,0.00010888,2]
[346806094,1735300259691,-500.0,0.00010888,2]
[346806095,1735300259701,-500.0,0.00010888,2]
[346806096,1735300259711,-500.0,0.00010888,2]
[346806097,1735300259721,-846.85,0.00010888,2]
[346806098,1735300259731,-500.0,0.00010888,2]
[346806099,1735300259741,-842.24,0.00010888,2]
[346806100,1735300259751,-593.39,0.00010888,2]
[346806101,1735300259762,-4561.45,0.00010888,2]
[346806102,1735300259772,-500.0,0.00010888,2]
[346806103,1735300259782,-500.76547293,0.00010888,2]
[346806104,1735300259793,-500.0,0.00010888,2]
[346806105,1735300259803,-500.0,0.00010888,2]
[346806106,1735300259813,-1313.16,0.00010888,2]
[346806107,1735300259823,-500.0,0.00010888,2]
[346806108,1735300259833,-536.77480804,0.00010888,2]
[346806109,1735300259843,-4748.81,0.00010888,2]
[346806110,1735300259853,-500.0,0.00010888,2]
[346806111,1735300259863,-500.0,0.00010888,2]
[346806112,1735300259873,-500.0,0.00010888,2]
[346806113,1735300259883,-500.0,0.00010888,2]
[346806114,1735300259893,-6776.58,0.00010888,2]
[346806115,1735300259903,-500.0,0.00010888,2]
[346806116,1735300259913,-1036.71,0.00010888,2]
[346806117,1735300259923,-500.0,0.00010888,2]
[346806118,1735300259933,-500.0,0.00010888,2]
[346806119,1735300259942,-635.73,0.00010888,2]
[346806120,1735300259952,-9628.36,0.00010888,2]
[346806121,1735300259962,-500.0,0.00010888,2]
[346806122,1735300259972,-500.0,0.00010888,2]
[346806123,1735300259982,-579.67,0.00010888,2]
[346806124,1735300259991,-500.0,0.00010888,2]
[346806125,1735300260002,-500.0,0.00010888,2]
[346806126,1735300260012,-500.0,0.00010888,2]
[346806127,1735300260022,-52802.97,0.00010888,2]
[346806128,1735300260032,-500.0,0.00010888,2]
[346806129,1735300260044,-500.0,0.00010888,2]
[346806130,1735300260054,-530.58,0.00010888,2]
[346806131,1735300260064,-500.0,0.00010888,2]
[346806132,1735300260075,-500.0,0.00010888,2]
[346806133,1735300260085,-500.0,0.00010888,2]
[346806134,1735300260096,-550.87,0.00010888,2]
[346806135,1735300260105,-1317.53,0.00010888,2]
[346806136,1735300260115,-5354.0,0.00010888,2]
[346806137,1735300260125,-500.0,0.00010888,2]
[346806138,1735300260135,-500.0,0.00010888,2]
[346806139,1735300260145,-500.0,0.00010888,2]
[346806140,1735300260155,-1030.71,0.00010888,2]
[346806141,1735300260165,-3140.26,0.00010888,2]
[346806142,1735300260175,-502.83457123,0.00010888,2]
[346806143,1735300260184,-540.73,0.00010888,2]
[346806144,1735300260194,-500.0,0.00010888,2]
[346806145,1735300260205,-500.0,0.00010888,2]
[346806146,1735300260215,-1200.59,0.00010888,2]
[346806147,1735300260225,-500.0,0.00010888,2]
[346806148,1735300260235,-500.0,0.00010888,2]
[346806149,1735300260245,-500.0,0.00010888,2]
[346806150,1735300260255,-2084.23,0.00010888,2]
[346806151,1735300260266,-500.0,0.00010888,2]
[346806152,1735300260276,-500.0,0.00010888,2]
[346806153,1735300260287,-500.0,0.00010888,2]
[346806154,1735300260297,-500.0,0.00010888,2]
[346806155,1735300260307,-500.0,0.00010888,2]
[346806156,1735300260317,-500.0,0.00010888,2]
[346806157,1735300260327,-150.0,0.00010888,2]
[346806158,1735300260337,-500.0,0.00010888,2]
[346806159,1735300260347,-500.0,0.00010888,2]
[346806160,1735300260357,-5000.0,0.00010888,2]
[346806161,1735300260367,-1113.16,0.00010888,2]
[346806162,1735300260377,-500.0,0.00010888,2]
[346806163,1735300260387,-500.0,0.00010888,2]
[346806164,1735300260396,-976.55,0.00010888,2]
[346806165,1735300260407,-5296.21,0.00010888,2]
[346806166,1735300260417,-933.16,0.00010888,2]
[346806167,1735300260427,-500.0,0.00010888,2]
[346806168,1735300260437,-505.25717637,0.00010888,2]
[346806169,1735300260447,-500.0,0.00010888,2]
[346806170,1735300260457,-1427.63,0.00010888,2]
[346806171,1735300260467,-36932.62,0.00010888,2]
[346806172,1735300260478,-500.0,0.00010888,2]
[346806173,1735300260488,-500.0,0.00010888,2]
[346806174,1735300260498,-505.77695175,0.00010888,2]
[346806175,1735300260509,-500.0,0.00010888,2]
[346806176,1735300260518,-500.0,0.00010888,2]
[346806177,1735300260528,-1318.57,0.00010888,2]
[346806178,1735300260538,-500.0,0.00010888,2]
[346806179,1735300260548,-500.0,0.00010888,2]
[346806180,1735300260561,-500.0,0.00010888,2]
[346806181,1735300260571,-519.48023472,0.00010888,2]
[346806182,1735300260582,-882.21,0.00010888,2]
[346806183,1735300260592,-500.0,0.00010888,2]
[346806184,1735300260602,-550.46,0.00010888,2]
[346806185,1735300260612,-3475.77,0.00010888,2]
[346806186,1735300260622,-1349.27,0.00010888,2]
[346806187,1735300260633,-500.0,0.00010888,2]
[346806188,1735300260643,-500.0,0.00010888,2]
[346806189,1735300260653,-1052.08,0.00010888,2]
[346806190,1735300260663,-2570.49,0.00010888,2]
[346806191,1735300260673,-500.0,0.00010888,2]
[346806192,1735300260683,-500.0,0.00010888,2]
[346806193,1735300260694,-500.0,0.00010888,2]
[346806194,1735300260703,-500.0,0.00010888,2]
[346806195,1735300260714,-1500.11,0.00010888,2]
[346806196,1735300260723,-500.0,0.00010888,2]
[346806197,1735300260733,-8734.61,0.00010888,2]
[346806198,1735300260743,-500.0,0.00010888,2]
[346806199,1735300260752,-275.34,0.00010888,2]
[346806200,1735300260763,-500.0,0.00010888,2]
[346806201,1735300260773,-500.0,0.00010888,2]
[346806202,1735300260968,-500.0,0.00010888,2]
[346806203,1735300260996,-4009.98,0.00010888,2]
[346806204,1735300261005,-695.66,0.00010888,2]
[346806205,1735300261014,-5904.31,0.00010888,2]
[346806206,1735300261023,-1640.45,0.00010888,2]
[346806207,1735300261032,-1973.88,0.00010888,2]
[346806208,1735300261044,-772.88,0.00010888,2]
[346806209,1735300261054,-735.94,0.00010888,2]
[346806210,1735300261063,-735.94,0.00010888,2]
[346806211,1735300261073,-500.0,0.00010888,2]
[346806212,1735300261082,-614.16,0.00010889,2]
[346806213,1735300261091,-769.44,0.00010889,2]
[346806214,1735300261100,-1346.84,0.00010889,2]
[346806215,1735300261109,-500.0,0.00010889,2]
[346806216,1735300261119,-500.0,0.00010889,2]
[346806217,1735300261128,-735.94,0.0001089,2]
[346806218,1735300261137,-188.75340677,0.000109,2]
[346806219,1735300261146,-150.0,0.00010905,2]
[346806220,1735300261155,-150.0,0.00010913,2]
[346806221,1735300261165,-150.0,0.00010915,2]
[346806222,1735300261174,-150.0,0.00010918,2]
[346806223,1735300261184,-150.0,0.00010919,2]
[346806224,1735300261193,-150.0,0.00010919,2]
[346806225,1735300261202,-150.0,0.00010921,2]
[346806226,1735300261212,-1500.0,0.00010924,2]
[346806227,1735300261221,-1500.0,0.00010927,2]
[346806228,1735300261231,-150.0,0.00010928,2]
[346806229,1735300261240,-150.0,0.0001093,2]
[346806230,1735300261250,-150.0,0.0001093,2]
[346806231,1735300261259,-150.0,0.00010933,2]
[346806232,1735300261269,-150.0,0.00010934,2]
[346806233,1735300261279,-150.0,0.00010934,2]
[346806234,1735300261290,-150.0,0.00010936,2]
[346806235,1735300261300,-150.0,0.00010942,2]
[346806236,1735300261310,-150.0,0.0001095,2]
[346806237,1735300261319,-150.0,0.0001095,2]
[346806238,1735300261328,-150.0,0.00010954,2]
[346806239,1735300261338,-150.0,0.00010956,2]
[346806240,1735300261348,-150.0,0.00010958,2]
[346806241,1735300261358,-150.0,0.00010958,2]
[346806242,1735300261367,-152.24,0.00010958,2]
[346806243,1735300261377,-978.01,0.00010958,2]
[346806244,1735300261387,-182.33,0.00010958,2]
[346806245,1735300261397,-150.0,0.00010958,2]
[346806246,1735300261407,-150.0,0.00010958,2]
[346806247,1735300261416,-978.01,0.00010958,2]
[346806248,1735300261427,-150.0,0.00010958,2]
[346806249,1735300261437,-150.0,0.00010958,2]
[346806250,1735300261447,-1367.41,0.00010958,2]
[346806251,1735300261456,-150.0,0.00010958,2]
[346806252,1735300261466,-150.0,0.00010958,2]
[346806253,1735300261476,-150.0,0.00010958,2]
[346806254,1735300261486,-7334.0,0.00010959,2]
[346806255,1735300261495,-9818.0,0.00010959,2]
[346806256,1735300261505,-150.0,0.00010959,2]
[346806257,1735300261514,-150.0,0.00010959,2]
[346806258,1735300261524,-565.0,0.00010964,2]
[346806259,1735300261534,-150.0,0.00010968,2]
[346806260,1735300261544,-150.0,0.00010971,2]
[346806261,1735300261557,-150.0,0.00010972,2]
[346806262,1735300261567,-648.16566158,0.00010973,2]
[346806263,1735300261577,-206.65967692,0.00010973,2]
[346806264,1735300261587,-500.0,0.00010973,2]
[346806265,1735300261597,-500.0,0.00010973,2]
[346806266,1735300261608,-150.0,0.00010973,2]
[346806267,1735300261618,-150.0,0.00010974,2]
[346806268,1735300261630,-150.0,0.00010975,2]
[346806269,1735300261640,-150.0,0.00010975,2]
[346806270,1735300261649,-150.0,0.00010976,2]
[346806271,1735300261660,-150.0,0.00010982,2]
[346806272,1735300261670,-150.0,0.00010982,2]
[346806273,1735300261680,-150.0,0.00010983,2]
[346806274,1735300261690,-150.0,0.00010985,2]
[346806275,1735300261700,-150.0,0.00010989,2]
[346806276,1735300261710,-150.0,0.0001099,2]
[346806277,1735300261719,-2357.616,0.00010996,2]
[346806278,1735300261730,-157.647,0.00010996,2]
[346806279,1735300261739,-1500.0,0.00010996,2]
[346806280,1735300261749,-1500.0,0.00010998,2]
[346806281,1735300261758,-750.71,0.00010999,2]
[346806282,1735300261768,-500.0,0.00010999,2]
[346806283,1735300261778,-500.0,0.00010999,2]
[346806284,1735300261789,-500.0,0.00010999,2]
[346806285,1735300261799,-500.0,0.00010999,2]
[346806286,1735300261808,-500.0,0.00010999,2]
[346806287,1735300261818,-500.0,0.00010999,2]
[346806288,1735300261828,-500.0,0.00010999,2]
[346806289,1735300261837,-500.0,0.00010999,2]
[346806290,1735300261847,-594.43,0.00010999,2]
[346806291,1735300261856,-500.0,0.00010999,2]
[346806292,1735300261866,-500.0,0.00010999,2]
[346806293,1735300261876,-500.0,0.00010999,2]
[346806294,1735300261886,-500.0,0.00010999,2]
[346806295,1735300261897,-500.0,0.00010999,2]
[346806296,1735300261906,-500.0,0.00010999,2]
[346806297,1735300261916,-500.0,0.00010999,2]
[346806298,1735300261926,-500.0,0.00010999,2]
[346806299,1735300261935,-500.0,0.00010999,2]
[346806300,1735300261945,-500.0,0.00010999,2]
[346806301,1735300261954,-500.0,0.00010999,2]
[346806302,1735300261964,-500.0,0.00010999,2]
[346806303,1735300261974,-498.5685478,0.00010999,2]
[346806304,1735300261983,-735.94,0.00010999,2]
[346806305,1735300261993,-735.94,0.00010999,2]
[346806306,1735300262003,-735.94,0.00010999,2]
[346806307,1735300262013,-1725757.90038156,0.00011,2]
[346806308,1735300262022,-3000.0,0.00011,2]
[346806309,1735300262032,-150.0,0.00011002,2]
[346806310,1735300262043,-150.0,0.00011002,2]
[346806311,1735300262052,-150.0,0.00011009,2]
[346806312,1735300262062,-150.0,0.00011012,2]
[346806313,1735300262071,-150.0,0.00011012,2]
[346806314,1735300262080,-150.0,0.00011016,2]
[346806315,1735300262090,-150.0,0.00011016,2]
[346806316,1735300262101,-150.0,0.00011018,2]
[346806317,1735300262111,-150.0,0.0001102,2]
[346806318,1735300262120,-150.0,0.00011025,2]
[346806319,1735300262130,-150.0,0.0001103,2]
[346806320,1735300262139,-807.8850317,0.00011032,2]
[346806321,1735300262148,-150.0,0.00011032,2]
[346806322,1735300262158,-150.0,0.00011035,2]
[346806323,1735300262167,-150.0,0.00011036,2]
[346806324,1735300262177,-150.0,0.00011039,2]
[346806325,1735300262186,-150.0,0.00011039,2]
[346806326,1735300262195,-150.0,0.0001104,2]
[346806327,1735300262204,-150.0,0.00011044,2]
[346806328,1735300262214,-150.0,0.00011046,2]
[346806329,1735300262223,-150.0,0.00011046,2]
[346806330,1735300262232,-150.0,0.00011047,2]
[346806331,1735300262242,-150.0,0.00011049,2]
[346806332,1735300262251,-150.0,0.00011053,2]
[346806333,1735300262260,-150.0,0.00011056,2]
[346806334,1735300262269,-150.0,0.00011056,2]
[346806335,1735300262279,-150.0,0.00011057,2]
[346806336,1735300262289,-150.0,0.00011057,2]
[346806337,1735300262298,-150.0,0.00011059,2]
[346806338,1735300262307,-1937.28579353,0.00011059,2]
[346806339,1735300262316,-150.0,0.0001106,2]
[346806340,1735300262326,-150.0,0.0001106,2]
[346806341,1735300262335,-1500.0,0.00011061,2]
[346806342,1735300262344,-150.0,0.00011068,2]
[346806343,1735300262353,-150.0,0.00011073,2]
[346806344,1735300262363,-150.0,0.00011074,2]
[346806345,1735300262371,-1937.28579351,0.00011076,2]
[346806346,1735300262381,-150.0,0.0001108,2]
[346806347,1735300262390,-150.0,0.0001108,2]
[346806348,1735300262399,-150.0,0.00011084,2]
[346806349,1735300262408,-150.0,0.00011085,2]
[346806350,1735300262418,-150.0,0.00011089,2]
[346806351,1735300262431,-150.0,0.00011091,2]
[346806352,1735300262442,-1937.28579351,0.00011092,2]
[346806353,1735300262452,-150.0,0.00011093,2]
[346806354,1735300262461,-150.0,0.00011096,2]
[346806355,1735300262471,-150.0,0.00011097,2]
[346806356,1735300262480,-150.0,0.00011099,2]
[346806357,1735300262490,-1500.0,0.00011103,2]
[346806358,1735300262500,-150.0,0.00011108,2]
[346806359,1735300262509,-150.85780981,0.0001111,2]
[346806360,1735300262519,-150.0,0.00011111,2]
[346806361,1735300262528,-150.0,0.00011111,2]
[346806362,1735300262537,-150.0,0.00011111,2]
[346806363,1735300262546,-150.0,0.00011112,2]
[346806364,1735300262561,-1500.0,0.00011112,2]
[346806365,1735300262570,-150.0,0.00011113,2]
[346806366,1735300262581,-150.0,0.00011114,2]
[346806367,1735300262591,-150.0,0.00011115,2]
[346806368,1735300262601,-150.0,0.00011115,2]
[346806369,1735300262611,-1500.0,0.00011116,2]
[346806370,1735300262622,-150.0,0.00011117,2]
[346806371,1735300262633,-150.0,0.00011119,2]
[346806372,1735300262642,-150.0,0.00011121,2]
[346806373,1735300262652,-150.0,0.00011122,2]
[346806374,1735300262662,-150.0,0.00011123,2]
[346806375,1735300262671,-150.0,0.00011123,2]
[346806376,1735300262682,-150.0,0.00011125,2]
[346806377,1735300262693,-150.0,0.00011131,2]
[346806378,1735300262703,-150.0,0.00011132,2]
[346806379,1735300262712,-750.71,0.00011136,2]
[346806380,1735300262721,-150.0,0.00011136,2]
[346806381,1735300262731,-150.0,0.00011139,2]
[346806382,1735300262740,-150.0,0.00011141,2]
[346806383,1735300262749,-1000.0,0.00011156,2]
[346806384,1735300262759,-150.0,0.00011157,2]
[346806385,1735300262768,-150.0,0.00011158,2]
[346806386,1735300262777,-150.0,0.00011158,2]
[346806387,1735300262787,-500.0,0.00011158,2]
[346806388,1735300262796,-500.0,0.00011158,2]
[346806389,1735300262805,-500.0,0.00011158,2]
[346806390,1735300262815,-559.63,0.00011158,2]
[346806391,1735300262823,-500.0,0.00011158,2]
[346806392,1735300262832,-781.06,0.00011158,2]
[346806393,1735300262841,-500.0,0.00011158,2]
[346806394,1735300262851,-648.42,0.00011158,2]
[346806395,1735300262860,-500.0,0.00011158,2]
[346806396,1735300262869,-500.0,0.00011158,2]
[346806397,1735300262879,-1088.75,0.00011158,2]
[346806398,1735300262888,-500.0,0.00011158,2]
[346806399,1735300262898,-500.0,0.00011158,2]
[346806400,1735300262907,-1128.66,0.00011158,2]
[346806401,1735300262917,-501.00744511,0.00011158,2]
[346806402,1735300262926,-500.0,0.00011158,2]
[346806403,1735300262936,-501.51652665,0.00011158,2]
[346806404,1735300262945,-500.0,0.00011158,2]
[346806405,1735300262954,-500.0,0.00011158,2]
[346806406,1735300262964,-500.0,0.00011158,2]
[346806407,1735300262973,-493.49592036,0.00011158,2]
[346806408,1735300262983,-591.58,0.00011158,2]
[346806409,1735300262992,-500.0,0.00011158,2]
[346806410,1735300263001,-603.35,0.00011158,2]
[346806411,1735300263011,-878.96,0.00011158,2]
[346806412,1735300263020,-500.0,0.00011158,2]
[346806413,1735300263029,-897.16,0.00011158,2]
[346806414,1735300263040,-500.0,0.00011158,2]
[346806415,1735300263049,-926.42,0.00011158,2]
[346806416,1735300263059,-500.0,0.00011158,2]
[346806417,1735300263069,-500.0,0.00011158,2]
[346806418,1735300263080,-785.66,0.00011158,2]
[346806419,1735300263090,-500.0,0.00011158,2]
[346806420,1735300263101,-500.0,0.00011158,2]
[346806421,1735300263111,-500.0,0.00011158,2]
[346806422,1735300263121,-500.0,0.00011158,2]
[346806423,1735300263131,-576.38,0.00011158,2]
[346806424,1735300263141,-1308.58,0.00011158,2]
[346806425,1735300263151,-500.0,0.00011158,2]
[346806426,1735300263161,-500.0,0.00011158,2]
[346806427,1735300263171,-527.74,0.00011158,2]
[346806428,1735300263181,-500.0,0.00011158,2]
[346806429,1735300263192,-5484.1,0.00011158,2]
[346806430,1735300263202,-500.0,0.00011158,2]
[346806431,1735300263211,-500.0,0.00011158,2]
[346806432,1735300263221,-500.0,0.00011158,2]
[346806433,1735300263231,-509.7290992,0.00011158,2]
[346806434,1735300263242,-500.0,0.00011158,2]
[346806435,1735300263251,-1016.82,0.00011158,2]
[346806436,1735300263261,-500.0,0.00011158,2]
[346806437,1735300263271,-940.24,0.00011158,2]
[346806438,1735300263282,-2403.89,0.00011158,2]
[346806439,1735300263296,-500.0,0.00011158,2]
[346806440,1735300263306,-500.0,0.00011158,2]
[346806441,1735300263316,-500.0,0.00011158,2]
[346806442,1735300263326,-500.0,0.00011158,2]
[346806443,1735300263336,-8273.54,0.00011158,2]
[346806444,1735300263346,-500.91839455,0.00011158,2]
[346806445,1735300263356,-500.0,0.00011158,2]
[346806446,1735300263365,-500.0,0.00011158,2]
[346806447,1735300263375,-509.06085693,0.00011158,2]
[346806448,1735300263385,-1133.03,0.00011158,2]
[346806449,1735300263395,-500.0,0.00011158,2]
[346806450,1735300263405,-500.0,0.00011158,2]
[346806451,1735300263415,-3972.43,0.00011158,2]
[346806452,1735300263425,-649.62,0.00011158,2]
[346806453,1735300263434,-500.0,0.00011158,2]
[346806454,1735300263444,-193.85879222,0.00011158,2]
[346806455,1735300263454,-7111.02,0.00011158,2]
[346806456,1735300263463,-500.0,0.00011158,2]
[346806457,1735300263473,-500.0,0.00011158,2]
[346806458,1735300263483,-500.0,0.00011158,2]
[346806459,1735300263492,-500.0,0.00011158,2]
[346806460,1735300263502,-500.0,0.00011158,2]
[346806461,1735300263513,-500.0,0.00011158,2]
[346806462,1735300263523,-801.68,0.00011158,2]
[346806463,1735300263533,-692.64,0.00011158,2]
[346806464,1735300263544,-500.0,0.00011158,2]
[346806465,1735300263556,-500.0,0.00011158,2]
[346806466,1735300263566,-507.13470891,0.00011158,2]
[346806467,1735300263575,-500.0,0.00011158,2]
[346806468,1735300263585,-500.0,0.00011158,2]
[346806469,1735300263595,-2524.02,0.00011158,2]
[346806470,1735300263604,-500.0,0.00011158,2]
[346806471,1735300263615,-500.0,0.00011158,2]
[346806472,1735300263627,-500.0,0.00011158,2]
[346806473,1735300263636,-500.0,0.00011158,2]
[346806474,1735300263646,-1371.72,0.00011158,2]
[346806475,1735300263655,-500.0,0.00011158,2]
[346806476,1735300263665,-770.58,0.00011158,2]
[346806477,1735300263675,-500.0,0.00011158,2]
[346806478,1735300263684,-793.42,0.00011158,2]
[346806479,1735300263694,-3764.3,0.00011158,2]
[346806480,1735300263705,-670.01,0.00011158,2]
[346806481,1735300263715,-501.90571205,0.00011158,2]
[346806482,1735300263724,-500.0,0.00011158,2]
[346806483,1735300263734,-500.0,0.00011158,2]
[346806484,1735300263743,-500.0,0.00011158,2]
[346806485,1735300263753,-500.0,0.00011158,2]
[346806486,1735300263762,-1468.14,0.00011158,2]
[346806487,1735300263771,-500.0,0.00011158,2]
[346806488,1735300263780,-501.59402804,0.00011158,2]
[346806489,1735300263791,-500.0,0.00011158,2]
[346806490,1735300263800,-500.0,0.00011158,2]
[346806491,1735300263810,-500.0,0.00011158,2]
[346806492,1735300263819,-1111.94,0.00011158,2]
[346806493,1735300263829,-7307.65,0.00011158,2]
[346806494,1735300263839,-500.0,0.00011158,2]
[346806495,1735300263848,-500.0,0.00011158,2]
[346806496,1735300263857,-500.0,0.00011158,2]
[346806497,1735300263867,-500.0,0.00011158,2]
[346806498,1735300263876,-1146.39,0.00011158,2]
[346806499,1735300263886,-500.0,0.00011158,2]
[346806500,1735300263896,-500.0,0.00011158,2]
[346806501,1735300263906,-500.0,0.00011158,2]
[346806502,1735300263916,-500.0,0.00011158,2]
[346806503,1735300263925,-500.0,0.00011158,2]
[346806504,1735300263932,-500.0,0.00011158,2]
[346806505,1735300263940,-500.0,0.00011158,2]
[346806506,1735300263949,-500.0,0.00011158,2]
[346806507,1735300263959,-7060.03,0.00011158,2]
[346806508,1735300263968,-500.0,0.00011158,2]
[346806509,1735300263977,-665.59,0.00011158,2]
[346806510,1735300263987,-500.0,0.00011158,2]
[346806511,1735300263996,-500.0,0.00011158,2]
[346806512,1735300264006,-11233.08,0.00011158,2]
[346806513,1735300264015,-500.0,0.00011158,2]
[346806514,1735300264024,-537.14,0.00011158,2]
[346806515,1735300264034,-500.0,0.00011158,2]
[346806516,1735300264044,-500.0,0.00011158,2]
[346806517,1735300264054,-1495.8,0.00011158,2]
[346806518,1735300264064,-500.0,0.00011158,2]
[346806519,1735300264073,-500.0,0.00011158,2]
[346806520,1735300264083,-238.22531397,0.00011158,2]
[346806521,1735300264092,-967.57,0.00011158,2]
[346806522,1735300264102,-500.0,0.00011158,2]
[346806523,1735300264112,-20941.98,0.00011158,2]
[346806524,1735300264121,-3918.99,0.00011158,2]
[346806525,1735300264132,-500.0,0.00011158,2]
[346806526,1735300264141,-686.3,0.00011158,2]
[346806527,1735300264151,-621.71,0.00011158,2]
[346806528,1735300264160,-4922.33,0.00011158,2]
[346806529,1735300264170,-1194.24,0.00011158,2]
[346806530,1735300264180,-500.0,0.00011158,2]
[346806531,1735300264190,-516.17,0.00011158,2]
[346806532,1735300264200,-1966.57,0.00011158,2]
[346806533,1735300264210,-11414.75,0.00011158,2]
[346806534,1735300264221,-500.0,0.00011158,2]
[346806535,1735300264231,-591.35,0.00011158,2]
[346806536,1735300264241,-500.0,0.00011158,2]
[346806537,1735300264251,-500.0,0.00011158,2]
[346806538,1735300264262,-500.0,0.00011158,2]
[346806539,1735300264465,-500.0,0.00011158,2]
[346806540,1735300264475,-3253.3,0.00011158,2]
[346806541,1735300264485,-500.0,0.00011158,2]
[346806542,1735300264495,-1252.47,0.00011158,2]
[346806543,1735300264505,-500.0,0.00011158,2]
[346806544,1735300264514,-3834.24,0.00011158,2]
[346806545,1735300264524,-9265.54,0.00011158,2]
[346806546,1735300264534,-500.0,0.00011158,2]
[346806547,1735300264548,-500.0,0.00011158,2]